[Event "*** Titled Tuesday Blitz"]
[Site "Chess.com"]
[Date "2020.04.14"]
[Round "2"]
[White "LuisFSiles"]
[Black "DaggiGretarsson"]
[Result "0-1"]
[WhiteElo "2302"]
[BlackElo "2654"]
[TimeControl "180+1"]
[EndTime "10:17:11 PDT"]
[Termination "DaggiGretarsson won by resignation"]

1. e4 {[%clk 0:03:00.9]} 1... g6 {[%clk 0:02:59.5]} 2. Nc3 {[%clk 0:02:59.7]}
2... Bg7 {[%clk 0:02:59.6]} 3. f4 {[%clk 0:02:59.5]} 3... c5 {[%clk 0:02:56.4]}
4. Nf3 {[%clk 0:02:58.8]} 4... Nc6 {[%clk 0:02:56.5]} 5. Bc4 {[%clk 0:02:50.2]}
5... e6 {[%clk 0:02:47.3]} 6. d3 {[%clk 0:02:47.2]} 6... Nge7 {[%clk 0:02:45.6]}
7. O-O {[%clk 0:02:47]} 7... O-O {[%clk 0:02:39.4]} 8. e5 {[%clk 0:02:30.9]}
8... d6 {[%clk 0:02:27.8]} 9. exd6 {[%clk 0:02:05.3]} 9... Nf5 {[%clk
0:02:27.7]} 10. Ne4 {[%clk 0:02:02.5]} 10... Nxd6 {[%clk 0:02:06.4]} 11. Kh1
{[%clk 0:01:56.8]} 11... Nxc4 {[%clk 0:01:54.6]} 12. dxc4 {[%clk 0:01:55.5]}
12... Qe7 {[%clk 0:01:51.5]} 13. c3 {[%clk 0:01:41.6]} 13... b6 {[%clk
0:01:46.6]} 14. Qe2 {[%clk 0:01:27.3]} 14... Bb7 {[%clk 0:01:45.4]} 15. Be3
{[%clk 0:01:21.3]} 15... Rad8 {[%clk 0:01:43.4]} 16. Bf2 {[%clk 0:01:10.6]}
16... Qc7 {[%clk 0:01:40.8]} 17. Bg3 {[%clk 0:01:06.5]} 17... Ne7 {[%clk
0:01:15.9]} 18. f5 {[%clk 0:00:54.1]} 18... Qc6 {[%clk 0:01:15.7]} 19. f6 {[%clk
0:00:49]} 19... Nf5 {[%clk 0:01:06.5]} 20. fxg7 {[%clk 0:00:46.3]} 20... Kxg7
{[%clk 0:01:06.3]} 21. Neg5 {[%clk 0:00:18.8]} 21... h6 {[%clk 0:01:02.1]} 22.
Ne5 {[%clk 0:00:17.8]} 22... Qxg2+ {[%clk 0:00:55]} 23. Qxg2 {[%clk 0:00:18.7]}
23... Bxg2+ {[%clk 0:00:54.8]} 24. Kxg2 {[%clk 0:00:19.6]} 24... Ne3+ {[%clk
0:00:50.8]} 25. Kf3 {[%clk 0:00:18.6]} 25... Nxf1 {[%clk 0:00:50.2]} 26. Rxf1
{[%clk 0:00:15.7]} 26... hxg5 {[%clk 0:00:50.2]} 27. Ke2 {[%clk 0:00:11]} 27...
f6 {[%clk 0:00:31.8]} 28. Nf3 {[%clk 0:00:08.5]} 28... e5 {[%clk 0:00:29.4]} 29.
a4 {[%clk 0:00:05.9]} 29... e4 {[%clk 0:00:25.2]} 30. Nd2 {[%clk 0:00:06.1]}
30... f5 {[%clk 0:00:25.2]} 31. Be5+ {[%clk 0:00:06.3]} 31... Kf7 {[%clk
0:00:24.2]} 32. Nxe4 {[%clk 0:00:06.1]} 32... Ke6 {[%clk 0:00:24.4]} 33. Bg3
{[%clk 0:00:04.5]} 33... fxe4 {[%clk 0:00:23.9]} 0-1

[Event "*** Titled Tuesday Blitz"]
[Site "Chess.com"]
[Date "2020.04.14"]
[Round "2"]
[White "PrinceMurad09"]
[Black "kircsaj"]
[Result "0-1"]
[WhiteElo "2542"]
[BlackElo "2315"]
[TimeControl "180+1"]
[EndTime "10:17:12 PDT"]
[Termination "kircsaj won by resignation"]

1. e4 {[%clk 0:03:00.9]} 1... c5 {[%clk 0:02:59.6]} 2. Nf3 {[%clk 0:03:00.4]}
2... Nc6 {[%clk 0:03:00]} 3. Bb5 {[%clk 0:02:59]} 3... g6 {[%clk 0:02:59.6]} 4.
Bxc6 {[%clk 0:02:58.8]} 4... dxc6 {[%clk 0:02:59.5]} 5. O-O {[%clk 0:02:58.2]}
5... Bg7 {[%clk 0:03:00]} 6. d3 {[%clk 0:02:58.2]} 6... Nf6 {[%clk 0:02:59.8]}
7. a4 {[%clk 0:02:58]} 7... a5 {[%clk 0:02:58.9]} 8. h3 {[%clk 0:02:57.6]} 8...
O-O {[%clk 0:02:58.6]} 9. Na3 {[%clk 0:02:57.1]} 9... Ne8 {[%clk 0:02:55.3]} 10.
Re1 {[%clk 0:02:56.4]} 10... e5 {[%clk 0:02:53.3]} 11. Be3 {[%clk 0:02:54.9]}
11... b6 {[%clk 0:02:49.9]} 12. c3 {[%clk 0:02:53]} 12... Rb8 {[%clk 0:02:42.4]}
13. Rb1 {[%clk 0:02:50.7]} 13... Ba6 {[%clk 0:02:41.3]} 14. Nc4 {[%clk 0:02:41]}
14... Bxc4 {[%clk 0:02:39.7]} 15. dxc4 {[%clk 0:02:40.5]} 15... Qe7 {[%clk
0:02:39.1]} 16. Qc2 {[%clk 0:02:38]} 16... Nc7 {[%clk 0:02:39.1]} 17. Nh2 {[%clk
0:02:26.7]} 17... Ne6 {[%clk 0:02:38.2]} 18. Ng4 {[%clk 0:02:25.1]} 18... Kh8
{[%clk 0:02:33.1]} 19. Nh2 {[%clk 0:02:19]} 19... f5 {[%clk 0:02:31.4]} 20. exf5
{[%clk 0:02:18.3]} 20... gxf5 {[%clk 0:02:31.5]} 21. Bd2 {[%clk 0:02:13.3]}
21... Qf6 {[%clk 0:02:29]} 22. Nf1 {[%clk 0:02:08.3]} 22... Qg6 {[%clk
0:02:24.8]} 23. Re2 {[%clk 0:02:04.3]} 23... e4 {[%clk 0:02:22.5]} 24. Re3
{[%clk 0:01:55.8]} 24... Rbe8 {[%clk 0:02:10.3]} 25. b4 {[%clk 0:01:55.1]} 25...
axb4 {[%clk 0:02:06]} 26. Rg3 {[%clk 0:01:52.1]} 26... Qf7 {[%clk 0:02:03.7]}
27. cxb4 {[%clk 0:01:50]} 27... cxb4 {[%clk 0:02:01.6]} 28. Bxb4 {[%clk
0:01:48.2]} 28... Nd4 {[%clk 0:02:01.3]} 29. Qa2 {[%clk 0:01:41.8]} 29... Rg8
{[%clk 0:01:58.1]} 30. Bc3 {[%clk 0:01:40.6]} 30... f4 {[%clk 0:01:57.6]} 31.
Rg4 {[%clk 0:01:36.2]} 31... f3 {[%clk 0:01:43.8]} 32. Ng3 {[%clk 0:01:28.1]}
32... fxg2 {[%clk 0:01:40.4]} 33. Rxg7 {[%clk 0:01:23]} 33... Nf3+ {[%clk
0:01:32.8]} 34. Kxg2 {[%clk 0:01:20]} 34... Rxg7 {[%clk 0:01:33]} 35. Bxg7+
{[%clk 0:01:17.5]} 35... Qxg7 {[%clk 0:01:31.7]} 36. Rxb6 {[%clk 0:01:16.6]}
36... Nh4+ {[%clk 0:01:25.1]} 37. Kf1 {[%clk 0:01:13.7]} 37... e3 {[%clk
0:01:24.8]} 38. fxe3 {[%clk 0:01:05.6]} 38... Qxg3 {[%clk 0:01:22.7]} 39. Qb2+
{[%clk 0:01:00.6]} 39... Kg8 {[%clk 0:01:22.1]} 40. Qf2 {[%clk 0:01:00]} 40...
Qxh3+ {[%clk 0:01:16.9]} 41. Ke2 {[%clk 0:00:57.2]} 41... Qg4+ {[%clk
0:01:10.3]} 42. Kd3 {[%clk 0:00:53]} 42... Qd1+ {[%clk 0:01:03.7]} 43. Kc3
{[%clk 0:00:51.5]} 43... Qc1+ {[%clk 0:00:58.2]} 44. Kd4 {[%clk 0:00:49.3]}
44... Ng6 {[%clk 0:00:54.4]} 45. Rxc6 {[%clk 0:00:46.5]} 45... Qa1+ {[%clk
0:00:54]} 46. Kc5 {[%clk 0:00:45.7]} 46... Qa3+ {[%clk 0:00:51.2]} 47. Kb5
{[%clk 0:00:43]} 47... Rb8+ {[%clk 0:00:50.6]} 0-1

[Event "*** Titled Tuesday Blitz"]
[Site "Chess.com"]
[Date "2020.04.14"]
[Round "2"]
[White "Larax"]
[Black "dsanchez1973"]
[Result "1-0"]
[WhiteElo "2391"]
[BlackElo "2073"]
[TimeControl "180+1"]
[EndTime "10:17:12 PDT"]
[Termination "Larax won by checkmate"]

1. e4 {[%clk 0:03:00.9]} 1... e6 {[%clk 0:03:00.1]} 2. d4 {[%clk 0:02:59.3]}
2... d5 {[%clk 0:03:00.7]} 3. Nc3 {[%clk 0:02:59.6]} 3... Bb4 {[%clk 0:03:01.3]}
4. e5 {[%clk 0:03:00]} 4... c5 {[%clk 0:03:01.9]} 5. a3 {[%clk 0:03:00.4]} 5...
Bxc3+ {[%clk 0:03:02.3]} 6. bxc3 {[%clk 0:03:01.3]} 6... Ne7 {[%clk 0:03:02.5]}
7. Qg4 {[%clk 0:03:01.5]} 7... Qc7 {[%clk 0:03:03]} 8. Qxg7 {[%clk 0:03:01.1]}
8... Rg8 {[%clk 0:03:03.6]} 9. Qxh7 {[%clk 0:03:01.5]} 9... cxd4 {[%clk
0:03:04.3]} 10. Ne2 {[%clk 0:03:02]} 10... Nbc6 {[%clk 0:03:04.9]} 11. f4 {[%clk
0:03:02.2]} 11... Bd7 {[%clk 0:03:04.7]} 12. Qd3 {[%clk 0:02:58.9]} 12... dxc3
{[%clk 0:03:04.9]} 13. Qxc3 {[%clk 0:02:59.3]} 13... O-O-O {[%clk 0:03:04.5]}
14. Rb1 {[%clk 0:02:55.7]} 14... Kb8 {[%clk 0:03:03.4]} 15. g3 {[%clk
0:02:55.5]} 15... d4 {[%clk 0:03:02]} 16. Qc5 {[%clk 0:02:52.8]} 16... Nf5
{[%clk 0:03:00.1]} 17. Bg2 {[%clk 0:02:48.3]} 17... Nh4 {[%clk 0:02:54.8]} 18.
Be4 {[%clk 0:02:47.6]} 18... f5 {[%clk 0:02:53.6]} 19. exf6 {[%clk 0:02:38.6]}
19... Nf5 {[%clk 0:02:51]} 20. Kf2 {[%clk 0:02:30.6]} 20... Rdf8 {[%clk
0:02:45.7]} 21. Bd2 {[%clk 0:02:12.5]} 21... Rxf6 {[%clk 0:02:43.6]} 22. c3
{[%clk 0:01:57.4]} 22... e5 {[%clk 0:02:42.8]} 23. cxd4 {[%clk 0:01:56.2]} 23...
Nfxd4 {[%clk 0:02:36.2]} 24. Nxd4 {[%clk 0:01:52.3]} 24... exd4 {[%clk 0:02:36]}
25. Rhc1 {[%clk 0:01:26.2]} 25... Re8 {[%clk 0:02:34.8]} 26. Bf3 {[%clk
0:01:21.8]} 26... Ka8 {[%clk 0:02:18.5]} 27. Qxd4 {[%clk 0:01:01.2]} 27... Rh6
{[%clk 0:01:46.1]} 28. h4 {[%clk 0:00:52.5]} 28... Rd6 {[%clk 0:01:09.5]} 29.
Qc3 {[%clk 0:00:50.6]} 29... Qd8 {[%clk 0:01:00.3]} 30. Be3 {[%clk 0:00:43.2]}
30... Bf5 {[%clk 0:00:53.8]} 31. Rxb7 {[%clk 0:00:36.2]} 31... Be4 {[%clk
0:00:47.7]} 32. Bxe4 {[%clk 0:00:30.5]} 32... Rxe4 {[%clk 0:00:47.8]} 33. Rb5
{[%clk 0:00:24.2]} 33... Qe7 {[%clk 0:00:29.3]} 34. Rc5 {[%clk 0:00:19.4]} 34...
Rde6 {[%clk 0:00:26.8]} 35. Rxc6 {[%clk 0:00:17.3]} 35... Rxe3 {[%clk
0:00:26.9]} 36. Rc8+ {[%clk 0:00:14.5]} 36... Kb7 {[%clk 0:00:26.8]} 37. Rb1+
{[%clk 0:00:14.1]} 37... Rb6 {[%clk 0:00:25.4]} 38. Rxb6+ {[%clk 0:00:14]} 38...
axb6 {[%clk 0:00:25.5]} 39. Qc6+ {[%clk 0:00:13.7]} 39... Ka7 {[%clk 0:00:21.5]}
40. Ra8# {[%clk 0:00:14.6]} 1-0

[Event "*** Titled Tuesday Blitz"]
[Site "Chess.com"]
[Date "2020.04.14"]
[Round "2"]
[White "queen_iryna"]
[Black "Riptide27"]
[Result "0-1"]
[WhiteElo "2199"]
[BlackElo "2465"]
[TimeControl "180+1"]
[EndTime "10:17:13 PDT"]
[Termination "Riptide27 won by resignation"]

1. d4 {[%clk 0:03:00.9]} 1... d5 {[%clk 0:02:59]} 2. Nc3 {[%clk 0:03:00.4]} 2...
e6 {[%clk 0:02:57.9]} 3. e4 {[%clk 0:02:59.4]} 3... Bb4 {[%clk 0:02:55.8]} 4. e5
{[%clk 0:02:55.9]} 4... Ne7 {[%clk 0:02:54.2]} 5. a3 {[%clk 0:02:51.6]} 5...
Bxc3+ {[%clk 0:02:53.6]} 6. bxc3 {[%clk 0:02:52.5]} 6... b6 {[%clk 0:02:53.7]}
7. Bd3 {[%clk 0:02:49.3]} 7... Ba6 {[%clk 0:02:52.7]} 8. Nf3 {[%clk 0:02:36.9]}
8... Bxd3 {[%clk 0:02:50.1]} 9. Qxd3 {[%clk 0:02:36.3]} 9... Qd7 {[%clk
0:02:47.5]} 10. O-O {[%clk 0:02:33.2]} 10... Qa4 {[%clk 0:02:45.8]} 11. Bg5
{[%clk 0:02:25.4]} 11... Nbc6 {[%clk 0:02:44.2]} 12. Nd2 {[%clk 0:02:02.1]}
12... Ng6 {[%clk 0:02:38.8]} 13. Be3 {[%clk 0:01:47.3]} 13... Na5 {[%clk
0:02:33.1]} 14. Rfb1 {[%clk 0:01:33.3]} 14... O-O {[%clk 0:02:28.4]} 15. Rb4
{[%clk 0:01:29.8]} 15... Qd7 {[%clk 0:02:25.5]} 16. a4 {[%clk 0:01:23.7]} 16...
Ne7 {[%clk 0:02:20.8]} 17. Rb5 {[%clk 0:01:10.3]} 17... c6 {[%clk 0:02:17.4]}
18. Rbb1 {[%clk 0:01:08.7]} 18... Rfc8 {[%clk 0:02:18]} 19. c4 {[%clk
0:01:07.2]} 19... Nf5 {[%clk 0:02:06.9]} 20. cxd5 {[%clk 0:01:04.2]} 20... cxd5
{[%clk 0:02:05.4]} 21. Rb2 {[%clk 0:00:53.3]} 21... Rc7 {[%clk 0:02:03.6]} 22.
g4 {[%clk 0:00:49.9]} 22... Ne7 {[%clk 0:02:01.8]} 23. f4 {[%clk 0:00:48.6]}
23... Rac8 {[%clk 0:02:00.8]} 24. Rf1 {[%clk 0:00:48.3]} 24... Qxa4 {[%clk
0:01:54.7]} 25. f5 {[%clk 0:00:45.1]} 25... Rxc2 {[%clk 0:01:53.7]} 26. Rxc2
{[%clk 0:00:43.6]} 26... Qxc2 {[%clk 0:01:54.6]} 27. Qb5 {[%clk 0:00:33.7]}
27... Qc6 {[%clk 0:01:45]} 28. Qd3 {[%clk 0:00:27.7]} 28... Nc4 {[%clk 0:01:41]}
29. f6 {[%clk 0:00:25.8]} 29... Ng6 {[%clk 0:01:39.4]} 30. fxg7 {[%clk
0:00:24.7]} 30... Qa4 {[%clk 0:01:26.2]} 31. Bh6 {[%clk 0:00:21.3]} 31... Qa3
{[%clk 0:01:18]} 32. Qe2 {[%clk 0:00:16.8]} 32... Qc3 {[%clk 0:01:10.1]} 33. Qf2
{[%clk 0:00:14.9]} 33... Rc7 {[%clk 0:01:09.8]} 34. Nf3 {[%clk 0:00:13.5]} 34...
Qb2 {[%clk 0:01:05.4]} 35. Qg3 {[%clk 0:00:10.9]} 35... a5 {[%clk 0:00:58.2]}
36. Rf2 {[%clk 0:00:08.9]} 36... Qc3 {[%clk 0:00:53.9]} 37. Qg2 {[%clk
0:00:05.4]} 37... a4 {[%clk 0:00:52.8]} 38. Qf1 {[%clk 0:00:05.5]} 38... a3
{[%clk 0:00:48.6]} 39. Kh1 {[%clk 0:00:02.7]} 39... Ne3 {[%clk 0:00:44.5]} 40.
Ra2 {[%clk 0:00:03.6]} 40... Nxf1 {[%clk 0:00:43.9]} 0-1

[Event "*** Titled Tuesday Blitz"]
[Site "Chess.com"]
[Date "2020.04.14"]
[Round "2"]
[White "smshk35"]
[Black "googlegoom"]
[Result "0-1"]
[WhiteElo "2281"]
[BlackElo "2511"]
[TimeControl "180+1"]
[EndTime "10:17:14 PDT"]
[Termination "googlegoom won by resignation"]

1. e4 {[%clk 0:03:00.9]} 1... c5 {[%clk 0:02:59.9]} 2. Nf3 {[%clk 0:03:00.7]}
2... Nc6 {[%clk 0:03:00.3]} 3. d4 {[%clk 0:03:00.9]} 3... cxd4 {[%clk
0:03:00.6]} 4. Nxd4 {[%clk 0:03:01.8]} 4... Qb6 {[%clk 0:03:01.1]} 5. Nb3 {[%clk
0:03:01.1]} 5... Nf6 {[%clk 0:03:01.5]} 6. Nc3 {[%clk 0:03:00.5]} 6... e6 {[%clk
0:03:02]} 7. Be3 {[%clk 0:02:58.7]} 7... Qc7 {[%clk 0:03:02.3]} 8. a3 {[%clk
0:02:59]} 8... d6 {[%clk 0:03:01.5]} 9. f4 {[%clk 0:02:59.1]} 9... a6 {[%clk
0:03:01.9]} 10. Qf3 {[%clk 0:02:59.2]} 10... b5 {[%clk 0:03:02.1]} 11. g4 {[%clk
0:02:59.4]} 11... h6 {[%clk 0:03:01.1]} 12. h4 {[%clk 0:02:51]} 12... h5 {[%clk
0:02:58.1]} 13. g5 {[%clk 0:02:49.1]} 13... Ng4 {[%clk 0:02:58.5]} 14. Bd2
{[%clk 0:02:38.2]} 14... Bb7 {[%clk 0:02:57.1]} 15. Bh3 {[%clk 0:02:37.6]} 15...
b4 {[%clk 0:02:57]} 16. axb4 {[%clk 0:02:28.8]} 16... Nxb4 {[%clk 0:02:57.9]}
17. O-O-O {[%clk 0:02:28.3]} 17... Rc8 {[%clk 0:02:54.7]} 18. Bxg4 {[%clk
0:02:25.4]} 18... hxg4 {[%clk 0:02:55.6]} 19. Qxg4 {[%clk 0:02:25.8]} 19... Bxe4
{[%clk 0:02:53.2]} 20. Nd4 {[%clk 0:02:19.7]} 20... Qa5 {[%clk 0:02:32.6]} 21.
Nb3 {[%clk 0:02:07.2]} 21... Qb6 {[%clk 0:01:28.4]} 22. Nxe4 {[%clk 0:02:00.2]}
22... Nxc2 {[%clk 0:01:14.7]} 23. Bc3 {[%clk 0:01:12.1]} 23... Qxb3 {[%clk
0:01:11.4]} 24. Rxd6 {[%clk 0:01:04.1]} 24... Ne3 {[%clk 0:00:48.7]} 25. Qe2
{[%clk 0:00:49.7]} 25... Nd5 {[%clk 0:00:41.2]} 26. Rxd5 {[%clk 0:00:44.3]}
26... Qxd5 {[%clk 0:00:42.1]} 27. Rd1 {[%clk 0:00:44.2]} 27... Qc6 {[%clk
0:00:42.1]} 28. f5 {[%clk 0:00:43.8]} 28... Rxh4 {[%clk 0:00:40.6]} 29. fxe6
{[%clk 0:00:25.2]} 29... Rxe4 {[%clk 0:00:39.8]} 30. exf7+ {[%clk 0:00:25.2]}
30... Kxf7 {[%clk 0:00:40.2]} 31. g6+ {[%clk 0:00:21]} 31... Qxg6 {[%clk
0:00:35.7]} 32. Rd7+ {[%clk 0:00:14.3]} 32... Kg8 {[%clk 0:00:34.3]} 33. Qf3
{[%clk 0:00:12.4]} 33... Re7 {[%clk 0:00:25.7]} 34. Qd5+ {[%clk 0:00:11.7]}
34... Qe6 {[%clk 0:00:25.9]} 35. Rxe7 {[%clk 0:00:04.7]} 35... Qxd5 {[%clk
0:00:24.9]} 0-1

[Event "*** Titled Tuesday Blitz"]
[Site "Chess.com"]
[Date "2020.04.14"]
[Round "2"]
[White "MrTattaglia"]
[Black "pooh2012"]
[Result "1-0"]
[WhiteElo "2862"]
[BlackElo "2577"]
[TimeControl "180+1"]
[EndTime "10:17:15 PDT"]
[Termination "MrTattaglia won by resignation"]

1. Nf3 {[%clk 0:02:59.8]} 1... Nf6 {[%clk 0:02:58]} 2. c4 {[%clk 0:02:59.6]}
2... e6 {[%clk 0:02:57]} 3. g3 {[%clk 0:02:58.7]} 3... b6 {[%clk 0:02:53.7]} 4.
Bg2 {[%clk 0:02:58.8]} 4... Bb7 {[%clk 0:02:54.3]} 5. O-O {[%clk 0:02:59.1]}
5... Be7 {[%clk 0:02:54.9]} 6. d4 {[%clk 0:02:59.5]} 6... O-O {[%clk 0:02:55.5]}
7. Nc3 {[%clk 0:03:00]} 7... Ne4 {[%clk 0:02:56.1]} 8. Bd2 {[%clk 0:02:59.5]}
8... d5 {[%clk 0:02:49.4]} 9. cxd5 {[%clk 0:02:57.6]} 9... exd5 {[%clk
0:02:49.6]} 10. Rc1 {[%clk 0:02:57.5]} 10... Nd7 {[%clk 0:02:40.9]} 11. Bf4
{[%clk 0:02:55.3]} 11... Bd6 {[%clk 0:02:34]} 12. Bxd6 {[%clk 0:02:53.2]} 12...
Nxd6 {[%clk 0:02:33.4]} 13. Ne5 {[%clk 0:02:53.5]} 13... Nf6 {[%clk 0:02:13.3]}
14. Qa4 {[%clk 0:02:51.1]} 14... Qe8 {[%clk 0:02:08.2]} 15. Qb3 {[%clk
0:02:47.4]} 15... Qe6 {[%clk 0:01:55]} 16. e3 {[%clk 0:02:41.5]} 16... Rac8
{[%clk 0:01:49.2]} 17. Qa3 {[%clk 0:02:40.9]} 17... a6 {[%clk 0:01:38.1]} 18.
Rfd1 {[%clk 0:02:40.1]} 18... c5 {[%clk 0:01:24.1]} 19. dxc5 {[%clk 0:02:39.8]}
19... bxc5 {[%clk 0:01:25]} 20. Nd3 {[%clk 0:02:39.9]} 20... Nc4 {[%clk
0:01:14.1]} 21. Qb3 {[%clk 0:02:39.3]} 21... Qb6 {[%clk 0:00:57.2]} 22. Nxd5
{[%clk 0:02:30.2]} 22... Bxd5 {[%clk 0:00:40.5]} 23. Bxd5 {[%clk 0:02:28.3]}
23... Qxb3 {[%clk 0:00:35.8]} 24. axb3 {[%clk 0:02:27.1]} 24... Nxe3 {[%clk
0:00:33.9]} 25. Bxf7+ {[%clk 0:02:26.1]} 25... Rxf7 {[%clk 0:00:34.8]} 26. fxe3
{[%clk 0:02:27]} 26... Ng4 {[%clk 0:00:34.1]} 27. e4 {[%clk 0:02:17.4]} 27...
Rfc7 {[%clk 0:00:33.3]} 28. h3 {[%clk 0:02:14.1]} 28... Nf6 {[%clk 0:00:32.9]}
29. e5 {[%clk 0:02:14]} 29... Ne4 {[%clk 0:00:33.1]} 30. Kg2 {[%clk 0:02:11.7]}
30... c4 {[%clk 0:00:32.2]} 31. bxc4 {[%clk 0:02:11.1]} 31... Rxc4 {[%clk
0:00:33.1]} 32. Rxc4 {[%clk 0:02:10.9]} 32... Rxc4 {[%clk 0:00:34]} 33. Nf4
{[%clk 0:01:57.2]} 33... Kf8 {[%clk 0:00:21.8]} 34. Kf3 {[%clk 0:01:46.6]} 34...
Ng5+ {[%clk 0:00:19.2]} 35. Kg4 {[%clk 0:01:43.8]} 35... Nf7 {[%clk 0:00:18.5]}
36. e6 {[%clk 0:01:39.7]} 36... Nh6+ {[%clk 0:00:18.7]} 37. Kf3 {[%clk
0:01:39.3]} 37... Ke8 {[%clk 0:00:17.6]} 38. g4 {[%clk 0:01:35.5]} 38... Ng8
{[%clk 0:00:16.9]} 39. Rd6 {[%clk 0:01:33.9]} 39... Rb4 {[%clk 0:00:07.6]} 40.
Nd5 {[%clk 0:01:29.6]} 40... Rb3+ {[%clk 0:00:07.6]} 41. Kf4 {[%clk 0:01:27.5]}
41... Nf6 {[%clk 0:00:04.3]} 42. Nxf6+ {[%clk 0:01:19.6]} 42... gxf6 {[%clk
0:00:05.2]} 43. Rxa6 {[%clk 0:01:20]} 43... Rxb2 {[%clk 0:00:05.7]} 44. Ra7
{[%clk 0:01:20.2]} 44... Rb6 {[%clk 0:00:03.6]} 45. Kf5 {[%clk 0:01:19.6]} 45...
Rb3 {[%clk 0:00:03.2]} 46. Rxh7 {[%clk 0:01:14.6]} 46... Rf3+ {[%clk 0:00:03.4]}
47. Kg6 {[%clk 0:01:14.5]} 47... Rf4 {[%clk 0:00:03.6]} 48. Rf7 {[%clk
0:01:11.9]} 48... Rf3 {[%clk 0:00:03.9]} 49. h4 {[%clk 0:01:10.9]} 49... Rg3
{[%clk 0:00:03.7]} 50. Kh5 {[%clk 0:01:10.6]} 50... Rf3 {[%clk 0:00:03.5]} 51.
g5 {[%clk 0:01:10.4]} 51... f5 {[%clk 0:00:04.1]} 52. g6 {[%clk 0:01:10.1]}
52... Rg3 {[%clk 0:00:04.6]} 53. Kh6 {[%clk 0:01:07.9]} 53... f4 {[%clk
0:00:04.9]} 54. g7 {[%clk 0:01:07.7]} 54... Rxg7 {[%clk 0:00:02.4]} 55. Kxg7
{[%clk 0:01:07.6]} 1-0

[Event "*** Titled Tuesday Blitz"]
[Site "Chess.com"]
[Date "2020.04.14"]
[Round "2"]
[White "Noam_Vitenberg"]
[Black "ViIIagra"]
[Result "0-1"]
[WhiteElo "2560"]
[BlackElo "2811"]
[TimeControl "180+1"]
[EndTime "10:17:15 PDT"]
[Termination "ViIIagra won on time"]

1. d4 {[%clk 0:03:00.9]} 1... g6 {[%clk 0:02:58.7]} 2. e4 {[%clk 0:02:59.2]}
2... d6 {[%clk 0:02:58.4]} 3. Nf3 {[%clk 0:02:58.4]} 3... a6 {[%clk 0:02:57.7]}
4. Be3 {[%clk 0:02:56.9]} 4... b5 {[%clk 0:02:56.8]} 5. c4 {[%clk 0:02:56.1]}
5... Bb7 {[%clk 0:02:55.7]} 6. Nbd2 {[%clk 0:02:54.7]} 6... c6 {[%clk
0:02:29.7]} 7. Bd3 {[%clk 0:02:44]} 7... Bg7 {[%clk 0:02:29.2]} 8. O-O {[%clk
0:02:43]} 8... Nf6 {[%clk 0:02:29.8]} 9. Rc1 {[%clk 0:02:42.6]} 9... O-O {[%clk
0:02:29.5]} 10. Re1 {[%clk 0:02:33.6]} 10... Nbd7 {[%clk 0:02:27.2]} 11. a4
{[%clk 0:02:32.5]} 11... b4 {[%clk 0:02:19.6]} 12. Nb3 {[%clk 0:02:24]} 12... a5
{[%clk 0:02:10.5]} 13. c5 {[%clk 0:02:23.8]} 13... dxc5 {[%clk 0:02:06.1]} 14.
Nxc5 {[%clk 0:02:23.1]} 14... Nxc5 {[%clk 0:02:06.4]} 15. Rxc5 {[%clk
0:02:23.7]} 15... Nd7 {[%clk 0:02:07]} 16. Rc2 {[%clk 0:02:21.4]} 16... e5
{[%clk 0:02:02.6]} 17. dxe5 {[%clk 0:02:11.3]} 17... Nxe5 {[%clk 0:02:03.5]} 18.
Nxe5 {[%clk 0:02:11]} 18... Bxe5 {[%clk 0:02:04.4]} 19. Qe2 {[%clk 0:02:08]}
19... Qf6 {[%clk 0:01:58.8]} 20. Rf1 {[%clk 0:01:45]} 20... Rfd8 {[%clk
0:01:38.9]} 21. f4 {[%clk 0:01:39.1]} 21... Bd4 {[%clk 0:01:39.2]} 22. e5 {[%clk
0:01:36]} 22... Qe7 {[%clk 0:01:38.7]} 23. Be4 {[%clk 0:01:30.3]} 23... c5
{[%clk 0:01:32.4]} 24. Bxd4 {[%clk 0:01:18.1]} 24... Rxd4 {[%clk 0:01:30.8]} 25.
Bxb7 {[%clk 0:01:14.3]} 25... Qxb7 {[%clk 0:01:31.7]} 26. Rxc5 {[%clk
0:01:11.7]} 26... Rad8 {[%clk 0:01:29.1]} 27. Qb5 {[%clk 0:00:52.5]} 27... Qe4
{[%clk 0:01:28.1]} 28. Qc6 {[%clk 0:00:25.5]} 28... Qe3+ {[%clk 0:01:26.5]} 29.
Kh1 {[%clk 0:00:23.9]} 29... Rxf4 {[%clk 0:01:08.4]} 30. Rcc1 {[%clk 0:00:17.9]}
30... Qxe5 {[%clk 0:01:07.5]} 31. Rxf4 {[%clk 0:00:11.9]} 31... Qxf4 {[%clk
0:01:08.4]} 32. h3 {[%clk 0:00:10]} 32... h5 {[%clk 0:00:57.9]} 33. Re1 {[%clk
0:00:07.4]} 33... Kg7 {[%clk 0:00:45.8]} 34. Qc5 {[%clk 0:00:04.2]} 34... Rd2
{[%clk 0:00:37.9]} 35. Qe5+ {[%clk 0:00:02.5]} 35... Qf6 {[%clk 0:00:32.5]} 36.
Qxf6+ {[%clk 0:00:02]} 36... Kxf6 {[%clk 0:00:33.4]} 0-1

[Event "*** Titled Tuesday Blitz"]
[Site "Chess.com"]
[Date "2020.04.14"]
[Round "2"]
[White "WinstonSilvakov"]
[Black "temiksmozg"]
[Result "0-1"]
[WhiteElo "2150"]
[BlackElo "2635"]
[TimeControl "180+1"]
[EndTime "10:17:15 PDT"]
[Termination "temiksmozg won on time"]

1. e4 {[%clk 0:02:37.2]} 1... e5 {[%clk 0:02:58.6]} 2. Nf3 {[%clk 0:02:35.3]}
2... Nc6 {[%clk 0:02:59]} 3. Bc4 {[%clk 0:02:33.5]} 3... Bc5 {[%clk 0:02:58]} 4.
c3 {[%clk 0:02:33.6]} 4... Nf6 {[%clk 0:02:58.1]} 5. b4 {[%clk 0:02:32]} 5...
Bb6 {[%clk 0:02:37.9]} 6. d3 {[%clk 0:02:32.9]} 6... O-O {[%clk 0:02:32.4]} 7.
O-O {[%clk 0:02:31.8]} 7... d5 {[%clk 0:02:21.1]} 8. exd5 {[%clk 0:02:28.6]}
8... Nxd5 {[%clk 0:02:22]} 9. Bxd5 {[%clk 0:02:28.7]} 9... Qxd5 {[%clk
0:02:17.7]} 10. c4 {[%clk 0:02:29.1]} 10... Qe6 {[%clk 0:02:15.7]} 11. c5 {[%clk
0:02:26.5]} 11... Nxb4 {[%clk 0:02:14.4]} 12. cxb6 {[%clk 0:02:24.4]} 12... axb6
{[%clk 0:02:15.3]} 13. Re1 {[%clk 0:02:15.4]} 13... Rxa2 {[%clk 0:02:04.6]} 14.
Rxa2 {[%clk 0:02:07.6]} 14... Qxa2 {[%clk 0:02:05.5]} 15. Ba3 {[%clk 0:02:00.4]}
15... c5 {[%clk 0:01:45.1]} 16. Nxe5 {[%clk 0:01:45.6]} 16... Nd5 {[%clk
0:01:11.9]} 17. Qd2 {[%clk 0:01:35.9]} 17... Qb3 {[%clk 0:01:07]} 18. Bb2 {[%clk
0:01:32.3]} 18... Re8 {[%clk 0:00:46.2]} 19. Nc3 {[%clk 0:01:21.2]} 19... Nb4
{[%clk 0:00:38.6]} 20. Ne4 {[%clk 0:01:17.6]} 20... f6 {[%clk 0:00:34.4]} 21.
Nd6 {[%clk 0:01:15.8]} 21... Rd8 {[%clk 0:00:22.9]} 22. Nxc8 {[%clk 0:01:03.6]}
22... Rxc8 {[%clk 0:00:23.8]} 23. Nc4 {[%clk 0:00:57.5]} 23... Qxd3 {[%clk
0:00:24.2]} 24. Qxd3 {[%clk 0:00:51.5]} 24... Nxd3 {[%clk 0:00:25.1]} 25. Re7
{[%clk 0:00:47.9]} 25... b5 {[%clk 0:00:22.6]} 26. Nd6 {[%clk 0:00:43.9]} 26...
Ra8 {[%clk 0:00:18]} 27. Bc3 {[%clk 0:00:22.3]} 27... b4 {[%clk 0:00:18.3]} 28.
Re3 {[%clk 0:00:13.6]} 28... bxc3 {[%clk 0:00:16.6]} 29. Rxd3 {[%clk 0:00:10.4]}
29... Ra1+ {[%clk 0:00:16.7]} 0-1